[Event "RUS-ch Boys U21 2021"]
[Site "Loo"]
[Date "2021.04.23"]
[Round "3.12"]
[White "Sidorov, Dmitry I"]
[Black "Kyshtymov, Daniil"]
[Result "1/2-1/2"]
[ECO "E62"]
[WhiteElo "2139"]
[BlackElo "2137"]
[Annotator "NA"]
[PlyCount "81"]
[EventDate "2021.04.21"]
[EventType "swiss"]
[EventCountry "RUS"]
[SourceTitle "playchess.com"]
[Source "ChessBase"]
[SourceQuality "1"]
[TimeControl "40/5400+30:1800+30"]

1. d4 {[%emt 0:00:00]} Nf6 {[%emt 0:00:00]} 2. c4 {[%emt 0:00:00]} g6 {[%emt 0:00:00]} 3. Nc3 {[%emt 0:00:00]} Bg7 {[%emt 0:00:00]} 4. g3 {[%emt 0:00:00]} O-O {[%emt 0:00:10]} 5. Bg2 {[%emt 0:00:00]} d6 {[%emt 0:01:39]} 6. Nf3 {[%emt 0:00:00]} Nc6 {[%emt 0:03:13]} 7. O-O {[%emt 0:00:09]} Bg4 {[%emt 0:07:18]} 8. Be3 {[%emt 0:21:12]} Nd7 {[%emt 0:10:39]} 9. d5 {[%emt 0:06:59]} Na5 {[%emt 0:08:40]} 10. Bd4 {[%emt 0:08:06]} Nf6 {[%emt 0:15:49]} 11. c5 {[%emt 0:03:03]} c6 {[%emt 0:19:38]} 12. cxd6 {[%emt 0:01:31]} exd6 {[%emt 0:01:07]} 13. dxc6 {[%emt 0:13:52]} bxc6 {[%emt 0:02:59]} 14. Rc1 {[%emt 0:17:36]} Nc4 {[%emt 0:05:36]} 15. Ne4 {[%emt 0:04:58]} Bxf3 {[%emt 0:09:42]} 16. Bxf3 {[%emt 0:01:17]} d5 {[%emt 0:00:14]} 17. Nxf6+ {[%emt 0:00:58]} Bxf6 {[%emt 0:00:04]} 18. b3 {[%emt 0:00:16]} Na5 {[%emt 0:02:13]} 19. Rc5 {[%emt 0:05:38]} Bxd4 {[%emt 0:05:40]} 20. Qxd4 {[%emt 0:00:06]} Qb6 {[%emt 0:00:18]} 21. Rd1 {[%emt 0:07:38]} Rfd8 {[%emt 0:00:47]} 22. e3 {[%emt 0:00:16]} Rac8 {[%emt 0:00:40]} 23. h4 {[%emt 0:02:51]} Nb7 {[%emt 0:01:37]} 24. Rc2 {[%emt 0:00:37]} Nd6 {[%emt 0:00:52]} 25. Qxb6 {[%emt 0:01:15]} axb6 {[%emt 0:00:05]} 26. Rdc1 {[%emt 0:00:05]} c5 {[%emt 0:01:39]} 27. Bxd5 {[%emt 0:00:38]} Nb5 {[%emt 0:00:22]} 28. Rd2 {[%emt 0:00:26]} Kg7 {[%emt 0:01:40]} 29. a4 {[%emt 0:01:53]} Nd4 {[%emt 0:00:45]} 30. exd4 {[%emt 0:01:36]} Rxd5 {[%emt 0:00:03]} 31. Kf1 {[%emt 0:01:00]} Rcd8 {[%emt 0:00:11]} 32. Ke2 {[%emt 0:00:20]} Rxd4 {[%emt 0:01:39]} 33. Rxd4 {[%emt 0:00:13]} Rxd4 {[%emt 0:00:07]} 34. a5 {[%emt 0:00:05]} bxa5 {[%emt 0:00:47]} 35. Rxc5 {[%emt 0:00:05]} a4 {[%emt 0:00:24]} 36. bxa4 {[%emt 0:01:18]} Rxa4 {[%emt 0:00:06]} 37. Kf3 {[%emt 0:00:08]} Ra3+ {[%emt 0:00:06]} 38. Kg2 {[%emt 0:00:03]} Ra2 {[%emt 0:00:05]} 39. Kf3 {[%emt 0:00:03]} Ra3+ {[%emt 0:00:04]} 40. Kg2 {[%emt 0:00:00]} Ra2 {[%emt 0:00:00]} 41. Kf3 {[%emt 0:00:05]} 1/2-1/2

[Event "RUS-ch Boys U21 2021"]
[Site "Loo"]
[Date "2021.04.24"]
[Round "4.1"]
[White "Obgolts, Erik"]
[Black "Tsvetkov, Andrey"]
[Result "0-1"]
[ECO "B90"]
[WhiteElo "2414"]
[BlackElo "2404"]
[Annotator "ChessBase"]
[PlyCount "130"]
[EventDate "2021.04.21"]
[EventType "swiss"]
[EventCountry "RUS"]
[SourceTitle "playchess.com"]
[Source "ChessBase"]
[SourceQuality "1"]
[TimeControl "40/5400+30:1800+30"]

1. e4 {[%emt 0:00:00]} c5 {[%emt 0:00:03]} 2. Nf3 {[%emt 0:00:00]} d6 {[%emt 0:00:04]} 3. d4 {[%emt 0:00:00]} cxd4 {[%emt 0:00:04]} 4. Nxd4 {[%emt 0:00:00]} Nf6 {[%emt 0:00:03]} 5. Nc3 {[%emt 0:00:00]} a6 {[%emt 0:00:02]} 6. Be3 {[%emt 0:00:00]} Ng4 {[%emt 0:00:05]} 7. Bg5 {[%emt 0:00:15]} h6 {[%emt 0:00:05]} 8. Bh4 {[%emt 0:00:03]} g5 {[%emt 0:00:03]} 9. Bg3 {[%emt 0:00:04]} Bg7 {[%emt 0:00:04]} 10. h3 {[%emt 0:02:32]} Ne5 {[%emt 0:00:06]} 11. Nf5 {[%emt 0:02:30]} Bxf5 {[%emt 0:00:17]} 12. exf5 {[%emt 0:00:03]} Nbc6 {[%emt 0:00:04]} 13. Nd5 {[%emt 0:01:42]} e6 {[%emt 0:00:06]} 14. fxe6 {[%emt 0:00:24]} fxe6 {[%emt 0:00:02]} 15. Ne3 {[%emt 0:00:04]} Qa5+ {[%emt 0:00:06]} 16. c3 {[%emt 0:00:13]} Nf3+ {[%emt 0:00:02]} 17. gxf3 {[%emt 0:00:08]} Bxc3+ {[%emt 0:00:02]} 18. bxc3 {[%emt 0:00:14]} Qxc3+ {[%emt 0:00:03]} 19. Qd2 {[%emt 0:00:09]} Qxa1+ {[%emt 0:00:02]} 20. Nd1 {[%emt 0:00:06]} Rc8 {[%emt 0:13:05]} 21. Bd3 {[%emt 0:19:15]} O-O {[%emt 0:00:23]} 22. O-O {[%emt 0:06:40]} Nd4 {[%emt 0:00:05]} 23. Kg2 {[%emt 0:03:57]} Nxf3 {[%emt 0:02:11]} 24. Qe2 {[%emt 0:14:18]} Qf6 {[%emt 0:12:22]} 25. Ne3 {[%emt 0:05:12]} Nd4 {[%emt 0:06:33]} 26. Qd1 {[%emt 0:07:26]} Qf3+ {[%emt 0:03:23]} 27. Qxf3 {[%emt 0:01:00]} Nxf3 {[%emt 0:00:02]} 28. Rd1 {[%emt 0:06:24]} d5 {[%emt 0:04:25]} 29. Be2 {[%emt 0:11:36]} Nh4+ {[%emt 0:00:11]} 30. Bxh4 {[%emt 0:00:08]} gxh4 {[%emt 0:00:02]} 31. Rd4 {[%emt 0:00:06]} Rfd8 {[%emt 0:07:46]} 32. Bd1 {[%emt 0:04:10]} Rc1 {[%emt 0:08:35]} 33. Bb3 {[%emt 0:02:27]} b5 {[%emt 0:00:05]} 34. a4 {[%emt 0:04:19]} Rc3 {[%emt 0:02:29]} 35. Bd1 {[%emt 0:00:47]} Kf8 {[%emt 0:06:17]} 36. axb5 {[%emt 0:00:04]} axb5 {[%emt 0:00:01]} 37. Be2 {[%emt 0:04:59]} e5 {[%emt 0:05:12]} 38. Rxh4 {[%emt 0:03:09]} d4 {[%emt 0:09:51]} 39. Nf5 {[%emt 0:00:10]} d3 {[%emt 0:00:52]} 40. Bd1 {[%emt 0:00:00]} Rc6 {[%emt 0:00:00]} 41. Rb4 {[%emt 0:05:37]} Rc5 {[%emt 0:09:33]} 42. Rh4 {[%emt 0:04:58]} Rc6 {[%emt 0:02:30]} 43. Rb4 {[%emt 0:03:28]} Rc1 {[%emt 0:00:37]} 44. Ne3 {[%emt 0:01:04]} Rc5 {[%emt 0:00:26]} 45. Kf1 {[%emt 0:02:20]} Rd4 {[%emt 0:09:09]} 46. Rb1 {[%emt 0:00:58]} Rd6 {[%emt 0:01:39]} 47. Ra1 {[%emt 0:01:59]} Rb6 {[%emt 0:03:31]} 48. Bb3 {[%emt 0:00:18]} Rbc6 {[%emt 0:02:14]} 49. Bd1 {[%emt 0:03:25]} Kg7 {[%emt 0:05:14]} 50. Ke1 {[%emt 0:00:40]} Rc1 {[%emt 0:01:59]} 51. Rxc1 {[%emt 0:04:22]} Rxc1 {[%emt 0:00:02]} 52. Kd2 {[%emt 0:00:04]} Rc8 {[%emt 0:03:28]} 53. Kxd3 {[%emt 0:00:15]} Rf8 {[%emt 0:00:03]} 54. Ke4 {[%emt 0:02:56]} Rxf2 {[%emt 0:02:23]} 55. Kxe5 {[%emt 0:00:03]} Rd2 {[%emt 0:00:17]} 56. h4 {[%emt 0:00:58]} b4 {[%emt 0:00:54]} 57. Ke4 {[%emt 0:01:42]} Kg6 {[%emt 0:02:15]} 58. Ba4 {[%emt 0:01:42]} Rh2 {[%emt 0:03:23]} 59. Be8+ {[%emt 0:02:04]} Kg7 {[%emt 0:00:49]} 60. Nf5+ {[%emt 0:05:14]} Kf6 {[%emt 0:00:35]} 61. Bb5 {[%emt 0:00:17]} b3 {[%emt 0:01:00]} 62. Nxh6 {[%emt 0:00:54]} Rxh4+ {[%emt 0:01:34]} 63. Kd3 {[%emt 0:00:20]} Rb4 {[%emt 0:01:30]} 64. Ng4+ {[%emt 0:00:54]} Rxg4 {[%emt 0:00:06]} 65. Kc3 {[%emt 0:00:04]} b2 {[%emt 0:00:09]} 0-1

[Event "RUS-ch Boys U21 2021"]
[Site "Loo"]
[Date "2021.04.24"]
[Round "4.2"]
[White "Lobanov, Sergei"]
[Black "Dudin, Gleb"]
[Result "1/2-1/2"]
[ECO "B12"]
[WhiteElo "2520"]
[BlackElo "2418"]
[Annotator "ChessBase"]
[PlyCount "81"]
[EventDate "2021.04.21"]
[EventType "swiss"]
[EventCountry "RUS"]
[SourceTitle "playchess.com"]
[Source "ChessBase"]
[SourceQuality "1"]
[TimeControl "40/5400+30:1800+30"]

1. e4 {[%emt 0:00:00]} c6 {[%emt 0:04:06]} 2. d4 {[%emt 0:00:06]} d5 {[%emt 0:00:09]} 3. e5 {[%emt 0:00:45]} c5 {[%emt 0:00:47]} 4. dxc5 {[%emt 0:00:59]} e6 {[%emt 0:00:10]} 5. a3 {[%emt 0:00:22]} Bxc5 {[%emt 0:01:15]} 6. Qg4 {[%emt 0:03:55]} Ne7 {[%emt 0:33:37]} 7. b4 {[%emt 0:08:28]} h5 {[%emt 0:07:11]} 8. Qg5 {[%emt 0:12:08]} Bb6 {[%emt 0:03:38]} 9. Nf3 {[%emt 0:00:47]} Ng6 {[%emt 0:10:00]} 10. Qxd8+ {[%emt 0:05:05]} Bxd8 {[%emt 0:01:52]} 11. Bd3 {[%emt 0:05:24]} Nh4 {[%emt 0:17:06]} 12. Nxh4 {[%emt 0:02:15]} Bxh4 {[%emt 0:00:06]} 13. Nd2 {[%emt 0:00:04]} a5 {[%emt 0:04:05]} 14. bxa5 {[%emt 0:04:34]} Rxa5 {[%emt 0:07:33]} 15. Bb2 {[%emt 0:14:00]} Be7 {[%emt 0:02:16]} 16. c4 {[%emt 0:05:04]} Nd7 {[%emt 0:00:31]} 17. Nb3 {[%emt 0:01:36]} Nc5 {[%emt 0:00:43]} 18. Nxc5 {[%emt 0:01:04]} Rxc5 {[%emt 0:00:34]} 19. cxd5 {[%emt 0:00:46]} Rxd5 {[%emt 0:00:53]} 20. Ke2 {[%emt 0:00:07]} Bd7 {[%emt 0:01:30]} 21. Be4 {[%emt 0:03:27]} Rb5 {[%emt 0:01:22]} 22. Bd4 {[%emt 0:04:21]} Bc5 {[%emt 0:01:03]} 23. Bxc5 {[%emt 0:04:20]} Rxc5 {[%emt 0:00:07]} 24. f4 {[%emt 0:00:04]} Bb5+ {[%emt 0:00:48]} 25. Ke3 {[%emt 0:09:55]} Bc6 {[%emt 0:00:35]} 26. Bxc6+ {[%emt 0:05:39]} Rxc6 {[%emt 0:00:22]} 27. Rhd1 {[%emt 0:00:20]} Ke7 {[%emt 0:00:38]} 28. Rab1 {[%emt 0:00:13]} Rc7 {[%emt 0:00:29]} 29. Rd3 {[%emt 0:01:20]} Ra8 {[%emt 0:00:15]} 30. Rdb3 {[%emt 0:00:07]} g6 {[%emt 0:00:31]} 31. Rxb7 {[%emt 0:00:10]} Rxa3+ {[%emt 0:00:06]} 32. Kf2 {[%emt 0:00:46]} Rxb7 {[%emt 0:00:14]} 33. Rxb7+ {[%emt 0:00:06]} Kf8 {[%emt 0:00:06]} 34. h4 {[%emt 0:00:25]} Kg7 {[%emt 0:00:06]} 35. Rc7 {[%emt 0:00:06]} Rd3 {[%emt 0:00:10]} 36. Ra7 {[%emt 0:00:04]} Rb3 {[%emt 0:00:05]} 37. Rc7 {[%emt 0:00:04]} Rd3 {[%emt 0:00:07]} 38. Ra7 {[%emt 0:00:04]} Rb3 {[%emt 0:00:06]} 39. Rc7 {[%emt 0:00:04]} Ra3 {[%emt 0:00:06]} 40. Rb7 {[%emt 0:00:00]} Rc3 {[%emt 0:00:00]} 41. Ra7 {[%emt 0:00:05]} 1/2-1/2

[Event "RUS-ch Boys U21 2021"]
[Site "Loo"]
[Date "2021.04.24"]
[Round "4.3"]
[White "Murzin, Volodar"]
[Black "Makoveev, Ilya"]
[Result "1-0"]
[ECO "C63"]
[WhiteElo "2478"]
[BlackElo "2315"]
[Annotator "ChessBase"]
[PlyCount "75"]
[EventDate "2021.04.21"]
[EventType "swiss"]
[EventCountry "RUS"]
[SourceTitle "playchess.com"]
[Source "ChessBase"]
[SourceQuality "1"]
[TimeControl "40/5400+30:1800+30"]

1. e4 {[%emt 0:00:43]} e5 {[%emt 0:00:21]} 2. Nf3 {[%emt 0:00:09]} Nc6 {[%emt 0:00:07]} 3. Bb5 {[%emt 0:00:45]} f5 {[%emt 0:00:48]} 4. Nc3 {[%emt 0:18:53]} fxe4 {[%emt 0:00:25]} 5. Nxe4 {[%emt 0:00:26]} Nf6 {[%emt 0:00:22]} 6. Qe2 {[%emt 0:01:48]} d5 {[%emt 0:00:25]} 7. Nxf6+ {[%emt 0:00:26]} gxf6 {[%emt 0:00:12]} 8. d4 {[%emt 0:00:09]} Bg7 {[%emt 0:00:30]} 9. O-O {[%emt 0:15:37]} O-O {[%emt 0:06:59]} 10. Bxc6 {[%emt 0:08:32]} bxc6 {[%emt 0:00:07]} 11. dxe5 {[%emt 0:00:02]} Re8 {[%emt 0:02:24]} 12. e6 {[%emt 0:01:36]} Rxe6 {[%emt 0:00:12]} 13. Be3 {[%emt 0:03:43]} c5 {[%emt 0:06:31]} 14. Rfd1 {[%emt 0:03:18]} Ba6 {[%emt 0:10:11]} 15. Qd2 {[%emt 0:04:58]} d4 {[%emt 0:02:37]} 16. c3 {[%emt 0:00:35]} Rd6 {[%emt 0:13:05]} 17. cxd4 {[%emt 0:00:25]} cxd4 {[%emt 0:00:13]} 18. Bf4 {[%emt 0:00:32]} Rd5 {[%emt 0:00:15]} 19. b4 {[%emt 0:00:42]} Qd7 {[%emt 0:04:51]} 20. Rac1 {[%emt 0:03:29]} c6 {[%emt 0:01:36]} 21. Re1 {[%emt 0:12:07]} Rd8 {[%emt 0:12:09]} 22. Re4 {[%emt 0:02:57]} Bf8 {[%emt 0:09:51]} 23. Rce1 {[%emt 0:06:03]} Bc8 {[%emt 0:01:59]} 24. Bh6 {[%emt 0:01:01]} Qf7 {[%emt 0:07:03]} 25. Bxf8 {[%emt 0:00:43]} Qxf8 {[%emt 0:00:07]} 26. Rxd4 {[%emt 0:05:35]} Rxd4 {[%emt 0:00:57]} 27. Nxd4 {[%emt 0:00:04]} c5 {[%emt 0:05:11]} 28. bxc5 {[%emt 0:00:13]} Qxc5 {[%emt 0:00:01]} 29. Re4 {[%emt 0:03:13]} Qb6 {[%emt 0:12:50]} 30. h3 {[%emt 0:05:09]} Qb1+ {[%emt 0:00:50]} 31. Re1 {[%emt 0:00:19]} Rxd4 {[%emt 0:00:35]} 32. Qc3 {[%emt 0:00:04]} Qb4 {[%emt 0:01:41]} 33. Qxc8+ {[%emt 0:00:30]} Kg7 {[%emt 0:00:01]} 34. Qc7+ {[%emt 0:01:16]} Kh6 {[%emt 0:01:02]} 35. Re7 {[%emt 0:00:25]} Qb1+ {[%emt 0:00:13]} 36. Kh2 {[%emt 0:00:04]} Qf5 {[%emt 0:00:29]} 37. Qg3 {[%emt 0:00:23]} Qf4 {[%emt 0:00:49]} 38. Rxa7 {[%emt 0:00:11]} 1-0

[Event "RUS-ch Boys U21 2021"]
[Site "Loo"]
[Date "2021.04.24"]
[Round "4.4"]
[White "Shubin, Kirill"]
[Black "Golikov, Daniil"]
[Result "1/2-1/2"]
[ECO "C14"]
[WhiteElo "2466"]
[BlackElo "2250"]
[Annotator "ChessBase"]
[PlyCount "96"]
[EventDate "2021.04.21"]
[EventType "swiss"]
[EventCountry "RUS"]
[SourceTitle "playchess.com"]
[Source "ChessBase"]
[SourceQuality "1"]
[TimeControl "40/5400+30:1800+30"]

1. e4 {[%emt 0:00:00]} e6 {[%emt 0:00:00]} 2. d4 {[%emt 0:00:00]} d5 {[%emt 0:00:00]} 3. Nc3 {[%emt 0:00:00]} Nf6 {[%emt 0:00:00]} 4. Bg5 {[%emt 0:00:00]} Be7 {[%emt 0:00:00]} 5. e5 {[%emt 0:00:07]} Nfd7 {[%emt 0:00:00]} 6. Bxe7 {[%emt 0:00:05]} Qxe7 {[%emt 0:00:00]} 7. f4 {[%emt 0:00:34]} O-O {[%emt 0:01:41]} 8. Nf3 {[%emt 0:00:21]} c5 {[%emt 0:00:05]} 9. Nb5 {[%emt 0:00:04]} Nc6 {[%emt 0:04:41]} 10. c3 {[%emt 0:00:19]} cxd4 {[%emt 0:20:18]} 11. cxd4 {[%emt 0:00:11]} Qb4+ {[%emt 0:00:56]} 12. Qd2 {[%emt 0:00:08]} Nb6 {[%emt 0:02:49]} 13. Nd6 {[%emt 0:02:55]} Qxd2+ {[%emt 0:07:48]} 14. Kxd2 {[%emt 0:00:06]} Rb8 {[%emt 0:00:03]} 15. Rc1 {[%emt 0:06:00]} Bd7 {[%emt 0:00:50]} 16. Bd3 {[%emt 0:01:19]} Nc8 {[%emt 0:01:40]} 17. Nxc8 {[%emt 0:03:00]} Rbxc8 {[%emt 0:02:09]} 18. g4 {[%emt 0:03:41]} Ne7 {[%emt 0:11:08]} 19. Ke3 {[%emt 0:03:12]} Rxc1 {[%emt 0:05:16]} 20. Rxc1 {[%emt 0:00:05]} Rc8 {[%emt 0:00:06]} 21. Rg1 {[%emt 0:01:51]} Rf8 {[%emt 0:05:50]} 22. h4 {[%emt 0:01:27]} g6 {[%emt 0:02:59]} 23. h5 {[%emt 0:01:26]} Kg7 {[%emt 0:00:04]} 24. Rh1 {[%emt 0:03:57]} h6 {[%emt 0:02:09]} 25. g5 {[%emt 0:04:10]} gxh5 {[%emt 0:02:30]} 26. Rxh5 {[%emt 0:01:30]} Rh8 {[%emt 0:00:46]} 27. gxh6+ {[%emt 0:02:14]} Rxh6 {[%emt 0:02:21]} 28. Rg5+ {[%emt 0:00:14]} Kf8 {[%emt 0:01:03]} 29. Rg3 {[%emt 0:01:10]} Nc6 {[%emt 0:08:58]} 30. a3 {[%emt 0:00:07]} Rh1 {[%emt 0:03:17]} 31. Rg1 {[%emt 0:01:15]} Rxg1 {[%emt 0:00:54]} 32. Nxg1 {[%emt 0:00:04]} Ke7 {[%emt 0:02:00]} 33. Nf3 {[%emt 0:00:33]} a6 {[%emt 0:01:40]} 34. Nd2 {[%emt 0:00:43]} a5 {[%emt 0:02:21]} 35. Nb1 {[%emt 0:00:56]} f6 {[%emt 0:03:15]} 36. Nc3 {[%emt 0:00:13]} fxe5 {[%emt 0:00:21]} 37. fxe5 {[%emt 0:00:03]} Na7 {[%emt 0:00:55]} 38. Kd2 {[%emt 0:00:38]} Be8 {[%emt 0:00:27]} 39. Bf1 {[%emt 0:00:18]} Bd7 {[%emt 0:01:06]} 40. Bd3 {[%emt 0:00:00]} Be8 {[%emt 0:00:00]} 41. Ne2 {[%emt 0:00:28]} Bb5 {[%emt 0:07:32]} 42. Bxb5 {[%emt 0:00:06]} Nxb5 {[%emt 0:00:01]} 43. Kd3 {[%emt 0:00:08]} Kd7 {[%emt 0:00:30]} 44. Kc2 {[%emt 0:00:33]} Nc7 {[%emt 0:01:21]} 45. Kb3 {[%emt 0:00:10]} b6 {[%emt 0:00:31]} 46. Ka4 {[%emt 0:00:41]} Kc6 {[%emt 0:00:30]} 47. Nf4 {[%emt 0:03:06]} Kd7 {[%emt 0:00:28]} 48. Nh3 {[%emt 0:00:25]} Ke8 {[%emt 0:00:45]} 1/2-1/2

[Event "RUS-ch Boys U21 2021"]
[Site "Loo"]
[Date "2021.04.24"]
[Round "4.5"]
[White "Pavlov, Danila"]
[Black "Pogosyan, Stefan"]
[Result "1-0"]
[ECO "B47"]
[WhiteElo "2360"]
[BlackElo "2444"]
[Annotator "NA"]
[PlyCount "75"]
[EventDate "2021.04.21"]
[EventType "swiss"]
[EventCountry "RUS"]
[SourceTitle "playchess.com"]
[Source "ChessBase"]
[SourceQuality "1"]
[TimeControl "40/5400+30:1800+30"]

1. e4 {[%emt 0:00:00]} c5 {[%emt 0:07:23]} 2. Nf3 {[%emt 0:00:00]} Nc6 {[%emt 0:00:08]} 3. d4 {[%emt 0:00:00]} cxd4 {[%emt 0:00:12]} 4. Nxd4 {[%emt 0:00:00]} e6 {[%emt 0:00:30]} 5. Nc3 {[%emt 0:00:00]} Qc7 {[%emt 0:00:29]} 6. g3 {[%emt 0:00:00]} a6 {[%emt 0:00:36]} 7. Bg2 {[%emt 0:00:00]} Nf6 {[%emt 0:00:12]} 8. O-O {[%emt 0:00:03]} Bc5 {[%emt 0:00:11]} 9. Nb3 {[%emt 0:00:18]} Ba7 {[%emt 0:00:31]} 10. Qe2 {[%emt 0:07:12]} Ne5 {[%emt 0:01:39]} 11. Kh1 {[%emt 0:08:16]} h5 {[%emt 0:11:54]} 12. f4 {[%emt 0:05:58]} Nc4 {[%emt 0:00:35]} 13. e5 {[%emt 0:15:17]} Ng4 {[%emt 0:00:22]} 14. Ne4 {[%emt 0:00:38]} d5 {[%emt 0:13:55]} 15. exd6 {[%emt 0:08:37]} Nxd6 {[%emt 0:02:06]} 16. Nxd6+ {[%emt 0:10:00]} Qxd6 {[%emt 0:00:08]} 17. Bd2 {[%emt 0:17:40]} Qc7 {[%emt 0:12:56]} 18. c4 {[%emt 0:13:56]} e5 {[%emt 0:08:26]} 19. f5 {[%emt 0:05:39]} Bd7 {[%emt 0:01:03]} 20. Na5 {[%emt 0:01:36]} Rb8 {[%emt 0:10:49]} 21. b4 {[%emt 0:00:47]} g6 {[%emt 0:01:52]} 22. fxg6 {[%emt 0:01:06]} h4 {[%emt 0:00:06]} 23. g7 {[%emt 0:01:21]} Rg8 {[%emt 0:00:04]} 24. h3 {[%emt 0:00:02]} hxg3 {[%emt 0:01:39]} 25. hxg4 {[%emt 0:00:56]} Rxg7 {[%emt 0:00:06]} 26. Be3 {[%emt 0:01:18]} Bxg4 {[%emt 0:00:32]} 27. Qe1 {[%emt 0:00:09]} Be6 {[%emt 0:06:20]} 28. Bxa7 {[%emt 0:00:51]} Qe7 {[%emt 0:00:13]} 29. Rf3 {[%emt 0:00:15]} Qh4+ {[%emt 0:00:42]} 30. Kg1 {[%emt 0:00:02]} e4 {[%emt 0:00:49]} 31. Rf4 {[%emt 0:02:24]} Qxf4 {[%emt 0:00:57]} 32. Bxb8 {[%emt 0:00:01]} Qxb8 {[%emt 0:00:07]} 33. Qxe4 {[%emt 0:00:01]} Qd8 {[%emt 0:01:26]} 34. Nxb7 {[%emt 0:00:43]} Qd2 {[%emt 0:00:21]} 35. Qc6+ {[%emt 0:00:11]} Bd7 {[%emt 0:00:46]} 36. Qb6 {[%emt 0:00:48]} Be6 {[%emt 0:06:18]} 37. Nd6+ {[%emt 0:00:42]} Ke7 {[%emt 0:00:14]} 38. Ne4 1-0

[Event "RUS-ch Boys U21 2021"]
[Site "Loo"]
[Date "2021.04.24"]
[Round "4.6"]
[White "Shpakov, Vladimir"]
[Black "Makarian, Rudik"]
[Result "0-1"]
[ECO "A41"]
[WhiteElo "1871"]
[BlackElo "2468"]
[Annotator "ChessBase"]
[PlyCount "60"]
[EventDate "2021.04.21"]
[EventType "swiss"]
[EventCountry "RUS"]
[SourceTitle "playchess.com"]
[Source "ChessBase"]
[SourceQuality "1"]
[TimeControl "40/5400+30:1800+30"]

1. d4 d6 {[%emt 0:00:15]} 2. Nf3 {[%emt 0:00:00]} f5 {[%emt 0:00:44]} 3. c4 {[%emt 0:00:00]} Nf6 {[%emt 0:00:06]} 4. Nc3 {[%emt 0:00:06]} g6 {[%emt 0:00:27]} 5. Bg5 {[%emt 0:00:33]} Nbd7 {[%emt 0:00:25]} 6. d5 {[%emt 0:01:07]} Bg7 {[%emt 0:03:02]} 7. Nd4 {[%emt 0:03:36]} Nc5 {[%emt 0:01:16]} 8. e3 {[%emt 0:01:16]} Nfe4 {[%emt 0:02:43]} 9. Nxe4 {[%emt 0:00:44]} Nxe4 {[%emt 0:00:08]} 10. Bh4 {[%emt 0:00:17]} c5 {[%emt 0:00:45]} 11. Nb3 {[%emt 0:04:16]} Bxb2 {[%emt 0:00:36]} 12. Bd3 {[%emt 0:00:06]} Bc3+ {[%emt 0:01:20]} 13. Ke2 {[%emt 0:00:10]} Bxa1 {[%emt 0:08:08]} 14. Qxa1 {[%emt 0:00:09]} O-O {[%emt 0:00:06]} 15. g4 {[%emt 0:02:19]} Nf6 {[%emt 0:06:15]} 16. gxf5 {[%emt 0:00:39]} Bxf5 {[%emt 0:00:04]} 17. Bxf5 {[%emt 0:00:12]} gxf5 {[%emt 0:00:04]} 18. Qg1+ {[%emt 0:03:43]} Kf7 {[%emt 0:01:02]} 19. Qg5 {[%emt 0:02:14]} Rg8 {[%emt 0:00:27]} 20. Qxf5 {[%emt 0:00:10]} Qd7 {[%emt 0:00:03]} 21. Qxd7 {[%emt 0:00:28]} Nxd7 {[%emt 0:00:05]} 22. Nd2 {[%emt 0:00:34]} a6 {[%emt 0:02:28]} 23. Rb1 {[%emt 0:00:15]} b5 {[%emt 0:00:28]} 24. cxb5 {[%emt 0:00:13]} axb5 {[%emt 0:00:06]} 25. Rxb5 {[%emt 0:00:05]} Rgb8 {[%emt 0:00:04]} 26. Rxb8 {[%emt 0:00:30]} Nxb8 {[%emt 0:00:03]} 27. Kd3 {[%emt 0:00:18]} Ra3+ {[%emt 0:00:09]} 28. Kc2 {[%emt 0:00:33]} Rxa2+ {[%emt 0:00:03]} 29. Kc3 {[%emt 0:00:06]} Nd7 {[%emt 0:00:05]} 30. Nc4 {[%emt 0:00:16]} Nf6 {[%emt 0:00:14]} 0-1

[Event "RUS-ch Boys U21 2021"]
[Site "Loo"]
[Date "2021.04.24"]
[Round "4.7"]
[White "Makovich, Andrey"]
[Black "Stukan, Martin"]
[Result "0-1"]
[ECO "A46"]
[WhiteElo "2171"]
[BlackElo "2390"]
[Annotator "NA"]
[PlyCount "74"]
[EventDate "2021.04.21"]
[EventType "swiss"]
[EventCountry "RUS"]
[SourceTitle "playchess.com"]
[Source "ChessBase"]
[SourceQuality "1"]
[TimeControl "40/5400+30:1800+30"]

1. d4 {[%emt 0:00:00]} Nf6 {[%emt 0:00:00]} 2. Nf3 {[%emt 0:00:00]} d5 {[%emt 0:00:00]} 3. c4 {[%emt 0:00:00]} e6 {[%emt 0:00:00]} 4. e3 {[%emt 0:00:00]} Be7 {[%emt 0:00:42]} 5. Nbd2 {[%emt 0:00:10]} O-O {[%emt 0:01:07]} 6. Bd3 {[%emt 0:00:05]} c5 {[%emt 0:03:01]} 7. b3 {[%emt 0:00:21]} cxd4 {[%emt 0:12:21]} 8. exd4 {[%emt 0:00:19]} Nc6 {[%emt 0:00:57]} 9. Bb2 {[%emt 0:00:09]} b6 {[%emt 0:01:20]} 10. O-O {[%emt 0:04:02]} Bb7 {[%emt 0:00:11]} 11. Qe2 {[%emt 0:00:37]} Rc8 {[%emt 0:07:01]} 12. Rac1 {[%emt 0:00:12]} Bd6 {[%emt 0:01:24]} 13. Rfe1 {[%emt 0:09:07]} Qe7 {[%emt 0:02:26]} 14. Ne5 {[%emt 0:03:06]} Ba3 {[%emt 0:02:59]} 15. Ndf3 {[%emt 0:00:11]} Bxb2 {[%emt 0:01:01]} 16. Qxb2 {[%emt 0:00:02]} h6 {[%emt 0:02:21]} 17. Nxc6 {[%emt 0:04:52]} Rxc6 {[%emt 0:03:01]} 18. Ne5 {[%emt 0:02:48]} Rc7 {[%emt 0:02:25]} 19. f4 {[%emt 0:05:17]} dxc4 {[%emt 0:24:26]} 20. bxc4 {[%emt 0:00:31]} Qd6 {[%emt 0:14:09]} 21. f5 {[%emt 0:06:44]} exf5 {[%emt 0:00:18]} 22. Bxf5 {[%emt 0:00:12]} Re7 {[%emt 0:00:41]} 23. c5 {[%emt 0:00:55]} bxc5 {[%emt 0:05:46]} 24. dxc5 {[%emt 0:00:35]} Qd5 {[%emt 0:00:55]} 25. Nf3 {[%emt 0:17:33]} Rxe1+ {[%emt 0:02:29]} 26. Nxe1 {[%emt 0:00:11]} Ba8 {[%emt 0:00:24]} 27. Bb1 {[%emt 0:04:22]} Re8 {[%emt 0:05:23]} 28. Nf3 {[%emt 0:00:31]} Bc6 {[%emt 0:01:46]} 29. Qc2 {[%emt 0:09:52]} g6 {[%emt 0:01:22]} 30. Qd2 {[%emt 0:05:29]} Qh5 {[%emt 0:01:00]} 31. Qf4 {[%emt 0:00:05]} Re2 {[%emt 0:01:47]} 32. Qxf6 {[%emt 0:00:44]} Qg4 {[%emt 0:00:09]} 33. g3 {[%emt 0:05:03]} Bxf3 {[%emt 0:00:08]} 34. Rd1 {[%emt 0:01:11]} Rg2+ {[%emt 0:00:54]} 35. Kf1 {[%emt 0:00:01]} Qc4+ {[%emt 0:00:25]} 36. Bd3 {[%emt 0:00:13]} Qxc5 {[%emt 0:00:09]} 37. Qd8+ {[%emt 0:01:40]} Kg7 {[%emt 0:00:13]} 0-1